fUSD/lending_fUSD_20241227
["ID","MTS","AMOUNT","RATE_DAILY","PERIOD"]
[346854860,1735327840156,-690.61,0.00010474,2]
[346854863,1735327840167,-2423.85,0.00010474,2]
[346854865,1735327840176,-500.0,0.00010474,2]
[346854866,1735327840186,-3858.17,0.00010474,2]
[346854867,1735327840196,-603.923154,0.00010475,2]
[346854868,1735327840207,-914.78,0.00010475,2]
[346854869,1735327840216,-500.0,0.00010475,2]
[346854870,1735327840226,-500.0,0.00010475,2]
[346854871,1735327840235,-500.67462845,0.00010475,2]
[346854872,1735327840244,-500.0,0.00010475,2]
[346854873,1735327840254,-500.0,0.00010475,2]
[346854874,1735327840265,-500.0,0.00010475,2]
[346854875,1735327840275,-500.0,0.00010475,2]
[346854876,1735327840284,-500.0,0.00010475,2]
[346854877,1735327840294,-500.0,0.00010475,2]
[346854878,1735327840304,-500.0,0.00010475,2]
[346854879,1735327840314,-500.0,0.00010475,2]
[346854880,1735327840324,-1017.89,0.00010475,2]
[346854881,1735327840333,-526.19395366,0.00010475,2]
[346854882,1735327840343,-500.0,0.00010475,2]
[346854883,1735327840353,-500.0,0.00010475,2]
[346854884,1735327840362,-500.0,0.00010475,2]
[346854885,1735327840372,-500.0,0.00010475,2]
[346854886,1735327840382,-971.36,0.00010475,2]
[346854887,1735327840392,-500.0,0.00010475,2]
[346854888,1735327840401,-500.0,0.00010475,2]
[346854889,1735327840410,-500.0,0.00010475,2]
[346854890,1735327840420,-501.79432819,0.00010475,2]
[346854891,1735327840430,-500.0,0.00010475,2]
[346854892,1735327840439,-718.98,0.00010475,2]
[346854893,1735327840449,-500.0,0.00010475,2]
[346854894,1735327840459,-500.0,0.00010475,2]
[346854895,1735327840468,-771.49,0.00010475,2]
[346854896,1735327840545,-500.0,0.00010475,2]
[346854897,1735327840555,-822.82,0.00010475,2]
[346854898,1735327840564,-500.0,0.00010475,2]
[346854899,1735327840573,-500.0,0.00010475,2]
[346854900,1735327840582,-661.76,0.00010475,2]
[346854901,1735327840591,-500.0,0.00010475,2]
[346854902,1735327840601,-516.04983611,0.00010475,2]
[346854903,1735327840611,-345.49348443,0.00010475,2]
[346854904,1735327840620,-500.0,0.00010475,2]
[346854905,1735327840629,-500.0,0.00010475,2]
[346854906,1735327840639,-500.0,0.00010475,2]
[346854907,1735327840648,-500.0,0.00010475,2]
[346854908,1735327840658,-500.0,0.00010475,2]
[346854909,1735327840667,-696.42,0.00010475,2]
[346854910,1735327840677,-500.0,0.00010475,2]
[346854911,1735327840686,-569.46,0.00010475,2]
[346854912,1735327840695,-500.0,0.00010475,2]
[346854913,1735327840705,-1062.3,0.00010475,2]
[346854914,1735327840714,-965.87,0.00010475,2]
[346854915,1735327840724,-240.8699292,0.00010475,2]
[346854916,1735327840733,-486.01095454,0.00010475,2]
[346854917,1735327840742,-500.0,0.00010475,2]
[346854918,1735327840752,-500.0,0.00010475,2]
[346854919,1735327840761,-500.0,0.00010475,2]
[346854920,1735327840771,-708.84,0.00010475,2]
[346854921,1735327840780,-500.0,0.00010475,2]
[346854922,1735327840789,-500.0,0.00010475,2]
[346854923,1735327840799,-500.0,0.00010475,2]
[346854924,1735327840808,-500.0,0.00010475,2]
[346854925,1735327840817,-500.0,0.00010475,2]
[346854926,1735327840826,-500.0,0.00010475,2]
[346854927,1735327840835,-1204.2,0.00010475,2]
[346854928,1735327840844,-500.0,0.00010475,2]
[346854929,1735327840853,-500.0,0.00010475,2]
[346854930,1735327840863,-500.0,0.00010475,2]
[346854931,1735327840872,-500.0,0.00010475,2]
[346854932,1735327840881,-500.0,0.00010475,2]
[346854933,1735327840891,-500.0,0.00010475,2]
[346854934,1735327840900,-500.0,0.00010475,2]
[346854935,1735327840909,-500.0,0.00010475,2]
[346854936,1735327840920,-500.0,0.00010475,2]
[346854937,1735327840932,-500.0,0.00010475,2]
[346854938,1735327840942,-822.17,0.00010475,2]
[346854939,1735327840951,-169.83430882,0.00010475,2]
[346854940,1735327840960,-500.0,0.00010475,2]
[346854941,1735327840971,-500.0,0.00010475,2]
[346854942,1735327840981,-500.0,0.00010475,2]
[346854943,1735327840991,-759.81,0.00010475,2]
[346854944,1735327841000,-261.8692072,0.00010475,2]
[346854945,1735327841013,-508.54555196,0.00010475,2]
[346854946,1735327841022,-500.0,0.00010475,2]
[346854947,1735327841032,-962.7,0.00010475,2]
[346854948,1735327841041,-500.0,0.00010475,2]
[346854949,1735327841050,-500.0,0.00010475,2]
[346854950,1735327841060,-500.0,0.00010475,2]
[346854951,1735327841069,-500.0,0.00010475,2]
[346854952,1735327841078,-500.0,0.00010475,2]
[346854953,1735327841087,-500.0,0.00010475,2]
[346854954,1735327841096,-697.23,0.00010475,2]
[346854955,1735327841105,-500.0,0.00010475,2]
[346854956,1735327841114,-500.0,0.00010475,2]
[346854957,1735327841124,-500.0,0.00010475,2]
[346854958,1735327841133,-500.0,0.00010475,2]
[346854959,1735327841142,-507.21,0.00010475,2]
[346854960,1735327841152,-500.0,0.00010475,2]
[346854961,1735327841161,-500.0,0.00010475,2]
[346854962,1735327841170,-500.0,0.00010475,2]
[346854963,1735327841180,-500.0,0.00010475,2]
[346854964,1735327841189,-749.45,0.00010475,2]
[346854965,1735327841199,-688.19,0.00010475,2]
[346854966,1735327841208,-500.0,0.00010475,2]
[346854967,1735327841218,-500.0,0.00010475,2]
[346854968,1735327841227,-500.0,0.00010475,2]
[346854969,1735327841238,-500.0,0.00010475,2]
[346854970,1735327841247,-500.0,0.00010475,2]
[346854971,1735327841257,-500.0,0.00010475,2]
[346854972,1735327841268,-500.0,0.00010475,2]
[346854973,1735327841277,-773.33,0.00010475,2]
[346854974,1735327841287,-500.0,0.00010475,2]
[346854975,1735327841297,-487.9050051,0.00010475,2]
[346854976,1735327841307,-626.42,0.00010475,2]
[346854977,1735327841316,-500.0,0.00010475,2]
[346854978,1735327841325,-500.0,0.00010475,2]
[346854979,1735327841334,-500.0,0.00010475,2]
[346854980,1735327841344,-567.69,0.00010475,2]
[346854981,1735327841353,-500.0,0.00010475,2]
[346854982,1735327841363,-1366.74,0.00010475,2]
[346854983,1735327841373,-500.0,0.00010475,2]
[346854984,1735327841383,-935.37,0.00010475,2]
[346854985,1735327841392,-402.73387447,0.00010475,2]
[346854986,1735327841402,-500.0,0.00010475,2]
[346854987,1735327841412,-500.0,0.00010475,2]
[346854988,1735327841421,-500.0,0.00010475,2]
[346854989,1735327841430,-776.14,0.00010475,2]
[346854991,1735327841440,-500.0,0.00010475,2]
[346854994,1735327841449,-738.92,0.00010475,2]
[346854995,1735327841459,-500.0,0.00010475,2]
[346854997,1735327841468,-802.32,0.00010475,2]
[346855000,1735327841478,-500.0,0.00010475,2]
[346855001,1735327841487,-500.0,0.00010475,2]
[346855003,1735327841496,-500.0,0.00010475,2]
[346855005,1735327841506,-697.26,0.00010475,2]
[346855007,1735327841516,-500.0,0.00010475,2]
[346855009,1735327841525,-1241.45,0.00010475,2]
[346855011,1735327841534,-500.0,0.00010475,2]
[346855013,1735327841544,-500.0,0.00010475,2]
[346855015,1735327841553,-715.61,0.00010475,2]
[346855017,1735327841563,-500.0,0.00010475,2]
[346855019,1735327841572,-500.0,0.00010475,2]
[346855021,1735327841582,-707.39,0.00010475,2]
[346855023,1735327841591,-500.0,0.00010475,2]
[346855025,1735327841600,-1071.39,0.00010475,2]
[346855027,1735327841609,-500.0,0.00010475,2]
[346855029,1735327841618,-150.0,0.00010475,2]
[346855031,1735327841628,-500.0,0.00010475,2]
[346855033,1735327841637,-5000.0,0.00010475,2]
[346855035,1735327841646,-753.07,0.00010475,2]
[346855037,1735327841655,-818.76,0.00010475,2]
[346855039,1735327841665,-500.0,0.00010475,2]
[346855041,1735327841674,-500.0,0.00010475,2]
[346855043,1735327841683,-621.07,0.00010475,2]
[346855045,1735327841693,-1320.96,0.00010475,2]
[346855047,1735327841702,-600.21,0.00010475,2]
[346855049,1735327841711,-662.7,0.00010475,2]
[346855051,1735327841722,-500.0,0.00010475,2]
[346855053,1735327841731,-1468.15,0.00010475,2]
[346855055,1735327841740,-932.25,0.00010475,2]
[346855057,1735327841750,-992.46,0.00010475,2]
[346855059,1735327841759,-500.0,0.00010475,2]
[346855061,1735327841768,-500.0,0.00010475,2]
[346855063,1735327841778,-500.0,0.00010475,2]
[346855065,1735327841787,-500.0,0.00010475,2]
[346855067,1735327841796,-500.0,0.00010475,2]
[346855069,1735327841805,-1480.9,0.00010475,2]
[346855071,1735327841815,-500.0,0.00010475,2]
[346855073,1735327841823,-500.0,0.00010475,2]
[346855075,1735327841832,-1086.28,0.00010475,2]
[346855077,1735327841841,-500.0,0.00010475,2]
[346855079,1735327841851,-520.26,0.00010475,2]
[346855081,1735327841860,-821.13,0.00010475,2]
[346855083,1735327841871,-500.0,0.00010475,2]
[346855085,1735327841880,-500.0,0.00010475,2]
[346855087,1735327841890,-1117.69,0.00010475,2]
[346855089,1735327841899,-810.22,0.00010475,2]
[346855091,1735327841908,-500.0,0.00010475,2]
[346855092,1735327841917,-500.0,0.00010475,2]
[346855093,1735327841931,-500.0,0.00010475,2]
[346855094,1735327841940,-500.0,0.00010475,2]
[346855095,1735327841950,-1152.54,0.00010475,2]
[346855096,1735327841959,-2119.05,0.00010475,2]
[346855097,1735327841968,-500.0,0.00010475,2]
[346855098,1735327841979,-500.0,0.00010475,2]
[346855099,1735327841988,-1462.26,0.00010475,2]
[346855101,1735327841998,-500.0,0.00010475,2]
[346855103,1735327842008,-500.0,0.00010475,2]
[346855105,1735327842018,-1875.0,0.00010475,2]
[346855107,1735327842027,-500.0,0.00010475,2]
[346855109,1735327842036,-500.0,0.00010475,2]
[346855111,1735327842045,-721.22,0.00010475,2]
[346855112,1735327842054,-500.0,0.00010475,2]
[346855113,1735327842063,-500.0,0.00010475,2]
[346855114,1735327842073,-734.13,0.00010475,2]
[346855115,1735327842083,-1296.55,0.00010475,2]
[346855116,1735327842093,-1195.8,0.00010475,2]
[346855117,1735327842104,-500.0,0.00010475,2]
[346855118,1735327842114,-500.0,0.00010475,2]
[346855119,1735327842123,-1752.04,0.00010475,2]
[346855120,1735327842133,-500.0,0.00010475,2]
[346855121,1735327842144,-640.92,0.00010475,2]
[346855122,1735327842153,-1105.79,0.00010475,2]
[346855123,1735327842162,-500.0,0.00010475,2]
[346855124,1735327842172,-6790.11,0.00010475,2]
[346855125,1735327842181,-4114.97,0.00010475,2]
[346855126,1735327842191,-5992.19,0.00010475,2]
[346855127,1735327842200,-500.0,0.00010476,2]
[346855128,1735327842210,-500.0,0.00010476,2]
[346855129,1735327842219,-500.0,0.00010476,2]
[346855131,1735327842228,-2193.51,0.00010476,2]
[346855133,1735327842237,-3946.9,0.00010476,2]
[346855135,1735327842247,-799.37,0.00010476,2]
[346855137,1735327842256,-2095.69,0.00010476,2]
[346855139,1735327842266,-2349.17,0.00010476,2]
[346855141,1735327842275,-500.0,0.00010476,2]
[346855142,1735327842284,-2223.27,0.00010476,2]
[346855143,1735327842294,-1685.15,0.00010476,2]
[346855145,1735327842303,-2515.82,0.00010476,2]
[346855147,1735327842313,-2911.41,0.00010476,2]
[346855148,1735327842323,-5091.44,0.00010476,2]
[346855150,1735327842332,-500.0,0.00010478,2]
[346855152,1735327842341,-150.0,0.00010478,2]
[346855154,1735327842350,-150.0,0.00010478,2]
[346855156,1735327842359,-1647.92,0.00010479,2]
[346855158,1735327842370,-3004.86,0.00010479,2]
[346855160,1735327842380,-22542.46,0.00010479,2]
[346855162,1735327842390,-855.98,0.00010479,2]
[346855164,1735327842398,-3894.85,0.00010479,2]
[346855166,1735327842408,-500.0,0.00010479,2]
[346855168,1735327842417,-2427.1,0.00010479,2]
[346855170,1735327842425,-1765.52,0.00010479,2]
[346855172,1735327842435,-4989.84,0.00010479,2]
[346855174,1735327842444,-700.64,0.00010479,2]
[346855176,1735327842454,-1477.0,0.00010479,2]
[346855178,1735327842463,-1778.7,0.00010479,2]
[346855180,1735327842473,-1268.62,0.00010479,2]
[346855182,1735327842482,-4508.18,0.00010479,2]
[346855184,1735327842492,-500.0,0.00010479,2]
[346855185,1735327842501,-484.7,0.00010479,2]
[346855187,1735327842510,-3201.31,0.00010479,2]
[346855189,1735327842520,-500.0,0.00010479,2]
[346855191,1735327842529,-500.0,0.00010479,2]
[346855193,1735327842537,-500.0,0.00010479,2]
[346855195,1735327842546,-260.56,0.00010479,2]
[346855197,1735327842555,-150.0,0.00010479,2]
[346855199,1735327842564,-500.0,0.00010479,2]
[346855201,1735327842574,-2228.05,0.00010479,2]
[346855204,1735327842583,-150.0,0.0001048,2]
[346855206,1735327842594,-150.0,0.00010482,2]
[346855207,1735327842603,-150.0,0.00010485,2]
[346855209,1735327842612,-150.0,0.00010486,2]
[346855211,1735327842621,-150.0,0.00010493,2]
[346855213,1735327842630,-150.0,0.00010495,2]
[346855216,1735327842639,-150.0,0.00010496,2]
[346855218,1735327842649,-869.22,0.000105,2]
[346855219,1735327842658,-1536.04,0.000105,2]
[346855222,1735327842667,-1000.0,0.000105,2]
[346855223,1735327842676,-399.43,0.00010501,2]
[346855225,1735327842686,-150.0,0.00010505,2]
[346855227,1735327842695,-150.0,0.00010507,2]
[346855229,1735327842704,-150.0,0.00010509,2]
[346855231,1735327842713,-150.0,0.0001051,2]
[346855233,1735327842723,-150.0,0.0001051,2]
[346855235,1735327842732,-150.0,0.00010515,2]
[346855237,1735327842742,-150.0,0.00010517,2]
[346855239,1735327842751,-150.0,0.00010519,2]
[346855241,1735327842760,-150.0,0.00010519,2]
[346855243,1735327842770,-150.0,0.0001052,2]
[346855245,1735327842779,-150.0,0.00010526,2]
[346855247,1735327842788,-150.0,0.00010528,2]
[346855249,1735327842798,-150.0,0.00010528,2]
[346855251,1735327842807,-150.0,0.00010533,2]
[346855253,1735327842817,-150.0,0.00010536,2]
[346855255,1735327842827,-150.0,0.00010538,2]
[346855257,1735327842836,-150.0,0.00010539,2]
[346855259,1735327842846,-150.0,0.00010541,2]
[346855261,1735327842856,-150.0,0.00010541,2]
[346855263,1735327842865,-150.0,0.00010544,2]
[346855265,1735327842874,-150.0,0.00010548,2]
[346855267,1735327842884,-150.0,0.0001055,2]
[346855269,1735327842893,-150.0,0.00010556,2]
[346855271,1735327842902,-150.0,0.00010558,2]
[346855273,1735327842911,-150.0,0.00010558,2]
[346855275,1735327842921,-150.0,0.00010562,2]
[346855277,1735327842933,-150.0,0.00010565,2]
[346855279,1735327842942,-1500.0,0.00010566,2]
[346855281,1735327842951,-150.0,0.00010567,2]
[346855283,1735327842960,-150.0,0.00010567,2]
[346855285,1735327842970,-150.0,0.00010568,2]
[346855287,1735327842979,-150.0,0.00010571,2]
[346855289,1735327842988,-150.0,0.00010572,2]
[346855291,1735327842997,-150.0,0.00010579,2]
[346855293,1735327843007,-150.0,0.0001058,2]
[346855295,1735327843017,-150.0,0.00010582,2]
[346855297,1735327843027,-150.0,0.00010583,2]
[346855299,1735327843037,-150.0,0.00010584,2]
[346855301,1735327843046,-150.0,0.00010585,2]
[346855303,1735327843056,-150.0,0.00010587,2]
[346855305,1735327843065,-150.0,0.0001059,2]
[346855307,1735327843075,-150.0,0.00010596,2]
[346855309,1735327843084,-1541.4,0.000106,2]
[346855312,1735327843093,-436.91,0.000106,2]
[346855315,1735327843103,-150.0,0.00010601,2]
[346855318,1735327843112,-1500.0,0.00010602,2]
[346855321,1735327843121,-150.0,0.00010603,2]
[346855324,1735327843130,-150.0,0.00010607,2]
[346855326,1735327843139,-150.0,0.00010607,2]
[346855328,1735327843148,-150.0,0.0001061,2]
[346855330,1735327843158,-150.0,0.00010613,2]
[346855332,1735327843167,-150.0,0.00010614,2]
[346855334,1735327843176,-150.0,0.00010615,2]
[346855336,1735327843185,-150.0,0.00010616,2]
[346855338,1735327843194,-150.0,0.00010616,2]
[346855340,1735327843203,-150.0,0.00010617,2]
[346855342,1735327843212,-150.0,0.00010618,2]
[346855344,1735327843221,-150.0,0.00010623,2]
[346855346,1735327843230,-150.0,0.00010623,2]
[346855348,1735327843239,-679.47123061,0.00010626,2]
[346855350,1735327843248,-150.0,0.00010628,2]
[346855352,1735327843258,-150.0,0.00010632,2]
[346855354,1735327843267,-150.0,0.00010634,2]
[346855356,1735327843277,-150.0,0.00010635,2]
[346855358,1735327843286,-150.0,0.00010635,2]
[346855360,1735327843295,-273.60567266,0.00010635,2]
[346855362,1735327843305,-150.0,0.00010635,2]
[346855364,1735327843315,-150.0,0.00010636,2]
[346855366,1735327843325,-150.0,0.00010638,2]
[346855368,1735327843335,-2500.0,0.0001064,2]
[346855371,1735327843344,-150.0,0.00010644,2]
[346855372,1735327843354,-1361.9112,0.00010648,2]
[346855374,1735327843364,-150.0,0.00010648,2]
[346855376,1735327843373,-150.0,0.00010652,2]
[346855379,1735327843383,-150.0,0.00010655,2]
[346855381,1735327843393,-150.0,0.00010655,2]
[346855383,1735327843403,-150.0,0.00010657,2]
[346855384,1735327843413,-4283.952,0.00010658,2]
[346855386,1735327843422,-158.436,0.00010658,2]
[346855388,1735327843432,-150.0,0.00010662,2]
[346855389,1735327843443,-150.0,0.00010664,2]
[346855390,1735327843453,-150.0,0.00010665,2]
[346855391,1735327843462,-150.0,0.0001067,2]
[346855392,1735327843471,-150.0,0.00010671,2]
[346855393,1735327843481,-1500.0,0.00010674,2]
[346855394,1735327843492,-866.0215068,0.00010675,2]
[346855395,1735327843501,-1500.0,0.00010677,2]
[346855396,1735327843511,-150.0,0.00010677,2]
[346855397,1735327843520,-1500.0,0.00010679,2]
[346855398,1735327843530,-150.0,0.00010683,2]
[346855399,1735327843541,-1000.0,0.00010684,2]
[346855400,1735327843550,-150.0,0.00010687,2]
[346855401,1735327843560,-1500.0,0.00010696,2]
[346855402,1735327843571,-150.0,0.00010697,2]
[346855403,1735327843581,-150.0,0.00010697,2]
[346855404,1735327843591,-1000.0,0.000107,2]
[346855405,1735327843600,-150.0,0.00010701,2]
[346855406,1735327843610,-150.0,0.00010703,2]
[346855408,1735327843620,-150.0,0.00010704,2]
[346855410,1735327843630,-150.0,0.00010709,2]
[346855411,1735327843639,-150.0,0.0001071,2]
[346855412,1735327843649,-150.0,0.0001071,2]
[346855413,1735327843659,-150.0,0.00010711,2]
[346855414,1735327843668,-150.0,0.00010712,2]
[346855415,1735327843678,-150.0,0.00010715,2]
[346855416,1735327843688,-150.0,0.00010716,2]
[346855417,1735327843698,-150.0,0.00010717,2]
[346855418,1735327843707,-150.0,0.00010722,2]
[346855419,1735327843717,-150.0,0.00010723,2]
[346855421,1735327843726,-150.0,0.00010726,2]
[346855423,1735327843736,-150.0,0.00010727,2]
[346855425,1735327843746,-150.0,0.00010735,2]
[346855427,1735327843756,-150.0,0.00010738,2]
[346855429,1735327843766,-150.0,0.00010739,2]
[346855431,1735327843775,-1500.0,0.00010744,2]
[346855432,1735327843785,-150.0,0.00010745,2]
[346855433,1735327843795,-20850.0994371,0.00010746,2]
[346855434,1735327843804,-7071.0087054,0.00010746,2]
[346855435,1735327843813,-547.63,0.00010746,2]
[346855436,1735327843822,-2480.34,0.00010746,2]
[346855437,1735327843832,-620.73,0.00010746,2]
[346855438,1735327843842,-8207.84,0.00010746,2]
[346855439,1735327843851,-2202.02,0.00010746,2]
[346855440,1735327843861,-1962.81,0.00010746,2]
[346855441,1735327843870,-1805.97,0.00010746,2]
[346855442,1735327843880,-3124.93,0.00010746,2]
[346855443,1735327843889,-500.0,0.00010746,2]
[346855444,1735327843899,-500.0,0.00010746,2]
[346855445,1735327843909,-500.0,0.00010746,2]
[346855446,1735327843919,-500.0,0.00010746,2]
[346855447,1735327843933,-500.0,0.00010746,2]
[346855448,1735327843942,-1122.76,0.00010746,2]
[346855449,1735327843952,-500.0,0.00010746,2]
[346855450,1735327843962,-505.76,0.00010746,2]
[346855451,1735327843973,-540.02,0.00010746,2]
[346855452,1735327843983,-500.0,0.00010746,2]
[346855453,1735327843992,-1094.22,0.00010746,2]
[346855454,1735327844004,-500.0,0.00010746,2]
[346855455,1735327844015,-638.62,0.00010746,2]
[346855456,1735327844025,-500.0,0.00010746,2]
[346855457,1735327844035,-604.36,0.00010746,2]
[346855458,1735327844044,-910.93,0.00010746,2]
[346855459,1735327844054,-500.0,0.00010747,2]
[346855460,1735327844065,-642.28,0.00010747,2]
[346855461,1735327844074,-500.0,0.00010747,2]
[346855462,1735327844084,-500.0,0.00010747,2]
[346855463,1735327844095,-745.66,0.00010747,2]
[346855464,1735327844105,-500.0,0.00010747,2]
[346855465,1735327844115,-500.0,0.00010747,2]
[346855466,1735327844125,-500.0,0.00010747,2]
[346855467,1735327844135,-500.0,0.00010747,2]
[346855468,1735327844145,-579.92,0.00010747,2]
[346855469,1735327844155,-762.19,0.00010747,2]
[346855470,1735327844164,-899.09,0.00010747,2]
[346855471,1735327844175,-690.44,0.00010747,2]
[346855472,1735327844185,-1257.59,0.00010747,2]
[346855473,1735327844195,-500.0,0.00010747,2]
[346855474,1735327844205,-880.97,0.00010747,2]
[346855475,1735327844215,-500.0,0.00010747,2]
[346855476,1735327844226,-627.78,0.00010747,2]
[346855477,1735327844235,-500.0,0.00010747,2]
[346855478,1735327844245,-500.0,0.00010747,2]
[346855479,1735327844255,-500.0,0.00010747,2]
[346855480,1735327844266,-500.0,0.00010747,2]
[346855481,1735327844276,-857.04,0.00010747,2]
[346855482,1735327844285,-1043.47,0.00010747,2]
[346855483,1735327844295,-544.68,0.00010747,2]
[346855484,1735327844305,-500.0,0.00010747,2]
[346855485,1735327844315,-500.0,0.00010747,2]
[346855486,1735327844327,-807.99,0.00010747,2]
[346855487,1735327844337,-500.0,0.00010747,2]
[346855488,1735327844347,-1037.05643,0.00010747,2]
[346855489,1735327844357,-910.58703,0.00010747,2]
[346855490,1735327844367,-500.0,0.00010747,2]
[346855491,1735327844377,-908.5,0.00010747,2]
[346855492,1735327844388,-500.0,0.00010747,2]
[346855493,1735327844398,-500.0,0.00010747,2]
[346855494,1735327844407,-500.0,0.00010747,2]
[346855495,1735327844417,-500.0,0.00010747,2]
[346855496,1735327844428,-500.0,0.00010747,2]
[346855497,1735327844438,-500.0,0.00010747,2]
[346855498,1735327844448,-956.84,0.00010747,2]
[346855499,1735327844458,-1654.72,0.00010747,2]
[346855500,1735327844468,-513.22,0.00010747,2]
[346855501,1735327844478,-500.0,0.00010747,2]
[346855502,1735327844488,-746.43,0.00010747,2]
[346855503,1735327844498,-500.0,0.00010747,2]
[346855504,1735327844507,-500.0,0.00010747,2]
[346855505,1735327844517,-250.32,0.00010747,2]
[346855506,1735327844527,-604.18,0.00010747,2]
[346855507,1735327844537,-1326.81,0.00010747,2]
[346855508,1735327844547,-621.88,0.00010747,2]
[346855509,1735327844556,-3050.71,0.00010747,2]
[346855510,1735327844566,-500.0,0.00010747,2]
[346855511,1735327844577,-500.0,0.00010747,2]
[346855512,1735327844589,-795.47,0.00010747,2]
[346855513,1735327844599,-500.0,0.00010747,2]
[346855514,1735327844610,-744.87,0.00010747,2]
[346855515,1735327844620,-500.0,0.00010747,2]
[346855516,1735327844630,-500.0,0.00010747,2]
[346855517,1735327844640,-1537.63,0.00010747,2]
[346855518,1735327844650,-1113.49,0.00010747,2]
[346855519,1735327844661,-500.0,0.00010747,2]
[346855520,1735327844671,-500.0,0.00010747,2]
[346855521,1735327844680,-500.0,0.00010747,2]
[346855522,1735327844690,-500.0,0.00010747,2]
[346855523,1735327844699,-974.18,0.00010747,2]
[346855524,1735327844709,-713.43,0.00010747,2]
[346855525,1735327844719,-600.69,0.00010747,2]
[346855526,1735327844728,-1720.59,0.00010747,2]
[346855527,1735327844739,-2437.95,0.00010747,2]
[346855528,1735327844749,-658.82,0.00010747,2]
[346855529,1735327844759,-676.84,0.00010747,2]
[346855530,1735327844769,-500.0,0.00010747,2]
[346855531,1735327844779,-604.71,0.00010747,2]
[346855532,1735327844789,-619.15,0.00010747,2]
[346855533,1735327844798,-778.14,0.00010747,2]
[346855534,1735327844809,-10480.82,0.00010747,2]
[346855535,1735327844819,-634.1,0.00010747,2]
[346855536,1735327844829,-1304.59,0.00010747,2]
[346855537,1735327844839,-2971.89,0.00010747,2]
[346855538,1735327844849,-1634.21,0.00010747,2]
[346855539,1735327844858,-500.0,0.00010747,2]
[346855540,1735327844868,-780.68,0.00010747,2]
[346855541,1735327844878,-500.0,0.00010747,2]
[346855542,1735327844888,-853.28,0.00010747,2]
[346855543,1735327844898,-1842.74,0.00010747,2]
[346855544,1735327844907,-1708.9,0.00010747,2]
[346855545,1735327844918,-6904.04,0.00010747,2]
[346855546,1735327844931,-500.0,0.00010747,2]
[346855547,1735327844941,-500.0,0.00010747,2]
[346855548,1735327844951,-500.0,0.00010747,2]
[346855549,1735327844961,-1023.43,0.00010747,2]
[346855550,1735327844971,-1164.81,0.00010747,2]
[346855551,1735327844981,-1296.17,0.00010747,2]
[346855552,1735327844992,-500.0,0.00010747,2]
[346855553,1735327845002,-760.12,0.00010747,2]
[346855554,1735327845013,-962.75,0.00010747,2]
[346855555,1735327845023,-1392.95,0.00010747,2]
[346855556,1735327845033,-709.44,0.00010747,2]
[346855557,1735327845044,-2076.22,0.00010747,2]